[Event "Titled Tuesday Blitz April 18 Early 2023"]
[White "Lehtosaari, Mauri"]
[Black "Antonova, Nadezhda"]
[WhiteFideId "501999"]
[BlackFideId "14700182"]
[WhiteElo "2509"]
[BlackElo "1765"]
[Result "1-0"]
[Round "05"]
[TimeControl "180+2"]
[Date "2023.04.18"]
[WhiteClock "0:00:12"]
[BlackClock "0:00:02"]

1. d4 {[%clk 0:03:00]}  Nf6 {[%clk 0:02:59]} 2. Nf3 {[%clk 0:02:59]}  g6 {[%clk 0:02:59]} 3. Bg5 {[%clk 0:02:53]}  Bg7 {[%clk 0:02:59]} 4. Nbd2 {[%clk 0:02:53]}  c5 {[%clk 0:02:57]} 5. e3 {[%clk 0:02:51]}  O-O {[%clk 0:02:54]} 6. Bd3 {[%clk 0:02:50]}  cxd4 {[%clk 0:02:53]} 7. exd4 {[%clk 0:02:50]}  d6 {[%clk 0:02:53]} 8. O-O {[%clk 0:02:50]}  Nc6 {[%clk 0:02:42]} 9. c3 {[%clk 0:02:45]}  b6 {[%clk 0:02:39]} 10. Re1 {[%clk 0:02:45]}  Bb7 {[%clk 0:02:39]} 11. a4 {[%clk 0:02:44]}  a6 {[%clk 0:02:38]} 12. Qb3 {[%clk 0:02:43]}  h6 {[%clk 0:02:32]} 13. Bxf6 {[%clk 0:02:37]}  Bxf6 {[%clk 0:02:30]} 14. Bxg6 {[%clk 0:02:30]}  Na5 {[%clk 0:02:30]} 15. Qa2 {[%clk 0:02:30]}  e6 {[%clk 0:02:19]} 16. Be4 {[%clk 0:02:28]}  d5 {[%clk 0:02:18]} 17. Bd3 {[%clk 0:02:24]}  Kh8 {[%clk 0:02:12]} 18. Qb1 {[%clk 0:02:19]}  Rg8 {[%clk 0:02:11]} 19. Qd1 {[%clk 0:02:15]}  Qd6 {[%clk 0:02:08]} 20. Qe2 {[%clk 0:02:13]}  Qf4 {[%clk 0:02:07]} 21. Nf1 {[%clk 0:01:49]}  Rg7 {[%clk 0:02:00]} 22. Ng3 {[%clk 0:01:46]}  Rag8 {[%clk 0:01:15]} 23. Ne5 {[%clk 0:01:44]}  Qg5 {[%clk 0:00:56]} 24. f4 {[%clk 0:01:25]}  Qxf4 {[%clk 0:00:50]} 25. Rf1 {[%clk 0:01:26]}  Qg5 {[%clk 0:00:49]} 26. Rxf6 {[%clk 0:00:58]}  Qxf6 {[%clk 0:00:46]} 27. Rf1 {[%clk 0:00:59]}  Qe7 {[%clk 0:00:39]} 28. Qh5 {[%clk 0:00:56]}  f5 {[%clk 0:00:34]} 29. Qxh6+ {[%clk 0:00:39]}  Rh7 {[%clk 0:00:34]} 30. Ng6+ {[%clk 0:00:40]}  Rxg6 {[%clk 0:00:32]} 31. Qxg6 {[%clk 0:00:41]}  Nc4 {[%clk 0:00:13]} 32. Re1 {[%clk 0:00:33]}  Bc8 {[%clk 0:00:09]} 33. Nxf5 {[%clk 0:00:28]}  Qf7 {[%clk 0:00:06]} 34. Qxf7 {[%clk 0:00:22]}  Rxf7 {[%clk 0:00:07]} 35. Bxc4 {[%clk 0:00:20]}  Rxf5 {[%clk 0:00:06]} 36. Bd3 {[%clk 0:00:19]}  Rf6 {[%clk 0:00:05]} 37. Re5 {[%clk 0:00:18]}  Kg7 {[%clk 0:00:05]} 38. g4 {[%clk 0:00:18]}  Kf7 {[%clk 0:00:05]} 39. h3 {[%clk 0:00:18]}  Bd7 {[%clk 0:00:05]} 40. Bc2 {[%clk 0:00:17]}  a5 {[%clk 0:00:04]} 41. Kg2 {[%clk 0:00:16]}  Ke7 {[%clk 0:00:03]} 42. g5 {[%clk 0:00:17]}  Rf8 {[%clk 0:00:03]} 43. h4 {[%clk 0:00:17]}  Rh8 {[%clk 0:00:02]} 44. Kg3 {[%clk 0:00:17]}  Be8 {[%clk 0:00:02]} 45. Bf5 {[%clk 0:00:13]}  Bd7 {[%clk 0:00:02]} 46. Bg4 {[%clk 0:00:12]}  Kd6 {[%clk 0:00:02]} 47. h5 {[%clk 0:00:12]} 1-0


[Site "https://www.chess.com"]

[Event "Titled Tuesday Blitz April 18 Early 2023"]
[White "Valle Maytin, Luis Enrique"]
[Black "Yelisieiev, Yevhenii"]
[WhiteFideId "3503666"]
[BlackFideId "14139642"]
[WhiteElo "2225"]
[BlackElo "2425"]
[Result "0-1"]
[Round "05"]
[TimeControl "180+2"]
[Date "2023.04.18"]
[WhiteClock "0:00:12"]
[BlackClock "0:00:09"]

1. d4 {[%clk 0:03:00]}  d6 {[%clk 0:02:59]} 2. Nf3 {[%clk 0:03:01]}  Nf6 {[%clk 0:02:59]} 3. e3 {[%clk 0:03:02]}  Nbd7 {[%clk 0:03:00]} 4. Be2 {[%clk 0:03:01]}  e5 {[%clk 0:03:00]} 5. O-O {[%clk 0:03:01]}  Be7 {[%clk 0:03:00]} 6. b3 {[%clk 0:03:01]}  O-O {[%clk 0:03:00]} 7. Bb2 {[%clk 0:03:02]}  e4 {[%clk 0:03:00]} 8. Nfd2 {[%clk 0:03:02]}  d5 {[%clk 0:03:01]} 9. c4 {[%clk 0:03:02]}  c6 {[%clk 0:03:01]} 10. Nc3 {[%clk 0:03:03]}  Bd6 {[%clk 0:02:52]} 11. f4 {[%clk 0:03:00]}  exf3 {[%clk 0:02:50]} 12. Bxf3 {[%clk 0:03:01]}  dxc4 {[%clk 0:02:47]} 13. bxc4 {[%clk 0:02:59]}  Re8 {[%clk 0:02:46]} 14. e4 {[%clk 0:02:58]}  Bf4 {[%clk 0:02:29]} 15. e5 {[%clk 0:02:50]}  Nxe5 {[%clk 0:02:04]} 16. dxe5 {[%clk 0:02:50]}  Qb6+ {[%clk 0:02:00]} 17. Kh1 {[%clk 0:02:16]}  Qxb2 {[%clk 0:01:56]} 18. exf6 {[%clk 0:02:15]}  Qxd2 {[%clk 0:01:36]} 19. Ne4 {[%clk 0:01:58]}  Qxd1 {[%clk 0:01:33]} 20. Raxd1 {[%clk 0:01:57]}  Be6 {[%clk 0:01:18]} 21. fxg7 {[%clk 0:01:56]}  Kxg7 {[%clk 0:01:14]} 22. Bh5 {[%clk 0:01:43]}  Be5 {[%clk 0:01:02]} 23. Nd6 {[%clk 0:01:34]}  Red8 {[%clk 0:00:45]} 24. c5 {[%clk 0:01:18]}  f6 {[%clk 0:00:41]} 25. Nxb7 {[%clk 0:01:10]}  Rxd1 {[%clk 0:00:40]} 26. Rxd1 {[%clk 0:01:10]}  Rb8 {[%clk 0:00:30]} 27. Na5 {[%clk 0:01:05]}  Bd5 {[%clk 0:00:23]} 28. Nb3 {[%clk 0:01:00]}  Bxb3 {[%clk 0:00:18]} 29. axb3 {[%clk 0:01:01]}  Rxb3 {[%clk 0:00:19]} 30. Bf3 {[%clk 0:00:57]}  a5 {[%clk 0:00:16]} 31. Bxc6 {[%clk 0:00:56]}  Rc3 {[%clk 0:00:17]} 32. g3 {[%clk 0:00:46]}  Rxc5 {[%clk 0:00:17]} 33. Be8 {[%clk 0:00:42]}  Rc4 {[%clk 0:00:15]} 34. Rd7+ {[%clk 0:00:42]}  Kh6 {[%clk 0:00:15]} 35. Ra7 {[%clk 0:00:37]}  Bd4 {[%clk 0:00:15]} 36. Ra6 {[%clk 0:00:33]}  Rc1+ {[%clk 0:00:14]} 37. Kg2 {[%clk 0:00:33]}  Rc2+ {[%clk 0:00:15]} 38. Kf3 {[%clk 0:00:31]}  Bc3 {[%clk 0:00:13]} 39. h4 {[%clk 0:00:29]}  Kg7 {[%clk 0:00:10]} 40. g4 {[%clk 0:00:27]}  Bb4 {[%clk 0:00:10]} 41. Ra7+ {[%clk 0:00:24]}  Kf8 {[%clk 0:00:10]} 42. Ba4 {[%clk 0:00:21]}  Rc3+ {[%clk 0:00:10]} 43. Ke4 {[%clk 0:00:19]}  Rc5 {[%clk 0:00:08]} 44. Rxh7 {[%clk 0:00:17]}  Re5+ {[%clk 0:00:07]} 45. Kf3 {[%clk 0:00:17]}  Bd2 {[%clk 0:00:05]} 46. Ra7 {[%clk 0:00:16]}  Re3+ {[%clk 0:00:05]} 47. Kg2 {[%clk 0:00:16]}  Re4 {[%clk 0:00:03]} 48. Bd7 {[%clk 0:00:15]}  Rd4 {[%clk 0:00:03]} 49. Bf5 {[%clk 0:00:15]}  a4 {[%clk 0:00:03]} 50. Bd7 {[%clk 0:00:14]}  Bc1 {[%clk 0:00:02]} 51. Bxa4 {[%clk 0:00:14]}  Rxg4+ {[%clk 0:00:02]} 52. Kh3 {[%clk 0:00:14]}  Rd4 {[%clk 0:00:02]} 53. h5 {[%clk 0:00:13]}  Bg5 {[%clk 0:00:02]} 54. Ra8+ {[%clk 0:00:12]}  Ke7 {[%clk 0:00:03]} 55. Be8 {[%clk 0:00:13]}  Rh4+ {[%clk 0:00:02]} 56. Kg3 {[%clk 0:00:13]}  Kd6 {[%clk 0:00:03]} 57. Bg6 {[%clk 0:00:12]}  Rb4 {[%clk 0:00:03]} 58. Ra5 {[%clk 0:00:12]}  Ke7 {[%clk 0:00:03]} 59. Kf3 {[%clk 0:00:11]}  Rb3+ {[%clk 0:00:03]} 60. Kg4 {[%clk 0:00:10]}  Rb4+ {[%clk 0:00:04]} 61. Kf3 {[%clk 0:00:11]}  Rf4+ {[%clk 0:00:04]} 62. Kg3 {[%clk 0:00:11]}  Rb4 {[%clk 0:00:04]} 63. Ra6 {[%clk 0:00:09]}  Bh4+ {[%clk 0:00:04]} 64. Kh3 {[%clk 0:00:09]}  Bg5 {[%clk 0:00:05]} 65. Ra7+ {[%clk 0:00:09]}  Kd6 {[%clk 0:00:05]} 66. Ra5 {[%clk 0:00:09]}  Rd4 {[%clk 0:00:05]} 67. h6 {[%clk 0:00:07]}  Bxh6 {[%clk 0:00:04]} 68. Kg3 {[%clk 0:00:07]}  Bf4+ {[%clk 0:00:04]} 69. Kf3 {[%clk 0:00:06]}  Bg5 {[%clk 0:00:05]} 70. Bf5 {[%clk 0:00:07]}  Rf4+ {[%clk 0:00:05]} 71. Kg3 {[%clk 0:00:07]}  Rb4 {[%clk 0:00:05]} 72. Bg4 {[%clk 0:00:07]}  Ke7 {[%clk 0:00:04]} 73. Bf5 {[%clk 0:00:07]}  Kd6 {[%clk 0:00:03]} 74. Ra6+ {[%clk 0:00:06]}  Ke5 {[%clk 0:00:03]} 75. Ra5+ {[%clk 0:00:07]}  Kd4 {[%clk 0:00:04]} 76. Kg4 {[%clk 0:00:06]}  Rb2 {[%clk 0:00:03]} 77. Kh5 {[%clk 0:00:07]}  Rh2+ {[%clk 0:00:04]} 78. Kg6 {[%clk 0:00:07]}  Ke3 {[%clk 0:00:04]} 79. Kf7 {[%clk 0:00:07]}  Rb2 {[%clk 0:00:04]} 80. Kg6 {[%clk 0:00:07]}  Kf4 {[%clk 0:00:04]} 81. Ra4+ {[%clk 0:00:07]}  Kg3 {[%clk 0:00:04]} 82. Ra3+ {[%clk 0:00:07]}  Kf2 {[%clk 0:00:04]} 83. Ra4 {[%clk 0:00:08]}  Rb5 {[%clk 0:00:05]} 84. Rg4 {[%clk 0:00:08]}  Rc5 {[%clk 0:00:04]} 85. Re4 {[%clk 0:00:07]}  Ra5 {[%clk 0:00:04]} 86. Rg4 {[%clk 0:00:08]}  Kf3 {[%clk 0:00:05]} 87. Rb4 {[%clk 0:00:07]}  Ra8 {[%clk 0:00:04]} 88. Rb3+ {[%clk 0:00:08]}  Kf4 {[%clk 0:00:02]} 89. Rb4+ {[%clk 0:00:08]}  Ke5 {[%clk 0:00:03]} 90. Rb5+ {[%clk 0:00:08]}  Kd4 {[%clk 0:00:03]} 91. Rb4+ {[%clk 0:00:08]}  Kc3 {[%clk 0:00:04]} 92. Rg4 {[%clk 0:00:07]}  Rg8+ {[%clk 0:00:04]} 93. Kf7 {[%clk 0:00:07]}  Rb8 {[%clk 0:00:05]} 94. Kg6 {[%clk 0:00:08]}  Rb7 {[%clk 0:00:06]} 95. Re4 {[%clk 0:00:07]}  Kd2 {[%clk 0:00:06]} 96. Rc4 {[%clk 0:00:07]}  Ke3 {[%clk 0:00:07]} 97. Rc3+ {[%clk 0:00:07]}  Kd4 {[%clk 0:00:06]} 98. Rd3+ {[%clk 0:00:08]}  Ke5 {[%clk 0:00:07]} 99. Re3+ {[%clk 0:00:08]}  Bxe3 {[%clk 0:00:07]} 100. Kh5 {[%clk 0:00:08]}  Rg7 {[%clk 0:00:06]} 101. Bg6 {[%clk 0:00:08]}  Rxg6 {[%clk 0:00:06]} 102. Kxg6 {[%clk 0:00:08]}  f5 {[%clk 0:00:07]} 103. Kh5 {[%clk 0:00:09]}  f4 {[%clk 0:00:08]} 104. Kg4 {[%clk 0:00:09]}  Ke4 {[%clk 0:00:08]} 105. Kh3 {[%clk 0:00:10]}  f3 {[%clk 0:00:09]} 106. Kg3 {[%clk 0:00:10]}  Bd4 {[%clk 0:00:09]} 107. Kh2 {[%clk 0:00:10]}  Ke3 {[%clk 0:00:09]} 108. Kg1 {[%clk 0:00:10]}  Ke2+ {[%clk 0:00:09]} 109. Kh2 {[%clk 0:00:11]}  f2 {[%clk 0:00:10]} 110. Kg3 {[%clk 0:00:11]}  f1=Q {[%clk 0:00:11]} 111. Kg4 {[%clk 0:00:12]}  Qf6 {[%clk 0:00:11]} 112. Kg3 {[%clk 0:00:11]}  Qf5 {[%clk 0:00:10]} 113. Kg2 {[%clk 0:00:12]}  Qf4 {[%clk 0:00:09]} 114. Kh3 {[%clk 0:00:12]}  Qg5 {[%clk 0:00:09]} 115. Kh2 {[%clk 0:00:12]}  Kf2 {[%clk 0:00:09]} 116. Kh1 {[%clk 0:00:12]}  Qg2# {[%clk 0:00:09]} 0-1


[Site "https://www.chess.com"]

[Event "Titled Tuesday Blitz April 18 Early 2023"]
[White "Mikhaylova, Irina"]
[Black "Shuvalov, Evgenij"]
[WhiteFideId "4109040"]
[BlackFideId "4187237"]
[WhiteElo "1975"]
[BlackElo "2080"]
[Result "1/2-1/2"]
[Round "05"]
[TimeControl "180+2"]
[Date "2023.04.18"]
[WhiteClock "0:00:32"]
[BlackClock "0:01:08"]

1. Nf3 {[%clk 0:02:55]}  Nf6 {[%clk 0:02:59]} 2. c4 {[%clk 0:02:55]}  c6 {[%clk 0:02:59]} 3. Nc3 {[%clk 0:02:56]}  d5 {[%clk 0:02:59]} 4. cxd5 {[%clk 0:02:56]}  cxd5 {[%clk 0:02:59]} 5. d4 {[%clk 0:02:57]}  Nc6 {[%clk 0:03:00]} 6. Bf4 {[%clk 0:02:58]}  Bf5 {[%clk 0:03:00]} 7. e3 {[%clk 0:02:58]}  e6 {[%clk 0:03:00]} 8. Qb3 {[%clk 0:02:59]}  Bb4 {[%clk 0:02:59]} 9. Bb5 {[%clk 0:02:59]}  O-O {[%clk 0:02:59]} 10. Bxc6 {[%clk 0:02:59]}  Bxc3+ {[%clk 0:02:58]} 11. bxc3 {[%clk 0:03:00]}  bxc6 {[%clk 0:02:57]} 12. O-O {[%clk 0:03:00]}  Qa5 {[%clk 0:02:52]} 13. Ne5 {[%clk 0:02:15]}  Rfc8 {[%clk 0:02:49]} 14. Qb4 {[%clk 0:01:44]}  Qd8 {[%clk 0:02:42]} 15. Qa4 {[%clk 0:01:25]}  Qe8 {[%clk 0:02:38]} 16. c4 {[%clk 0:01:19]}  Nd7 {[%clk 0:02:11]} 17. cxd5 {[%clk 0:01:12]}  Nxe5 {[%clk 0:02:08]} 18. Bxe5 {[%clk 0:01:10]}  cxd5 {[%clk 0:02:06]} 19. Qxe8+ {[%clk 0:01:09]}  Rxe8 {[%clk 0:02:07]} 20. Rfc1 {[%clk 0:01:09]}  Rec8 {[%clk 0:02:07]} 21. h3 {[%clk 0:01:09]}  f6 {[%clk 0:02:06]} 22. Bd6 {[%clk 0:01:05]}  Kf7 {[%clk 0:01:54]} 23. a3 {[%clk 0:00:57]}  Ke8 {[%clk 0:01:52]} 24. Bb4 {[%clk 0:00:52]}  Kd7 {[%clk 0:01:50]} 25. Kf1 {[%clk 0:00:53]}  Rc4 {[%clk 0:01:50]} 26. Ke1 {[%clk 0:00:44]}  Rac8 {[%clk 0:01:49]} 27. Rxc4 {[%clk 0:00:42]}  Rxc4 {[%clk 0:01:48]} 28. Bd2 {[%clk 0:00:33]}  Kc6 {[%clk 0:01:45]} 29. Rc1 {[%clk 0:00:33]}  Kb5 {[%clk 0:01:41]} 30. Rxc4 {[%clk 0:00:31]}  Kxc4 {[%clk 0:01:41]} 31. Bb4 {[%clk 0:00:28]}  Kd3 {[%clk 0:01:35]} 32. Bf8 {[%clk 0:00:25]}  g6 {[%clk 0:01:33]} 33. Bg7 {[%clk 0:00:24]}  e5 {[%clk 0:01:26]} 34. Bxf6 {[%clk 0:00:23]}  e4 {[%clk 0:01:24]} 35. Be7 {[%clk 0:00:20]}  Bd7 {[%clk 0:01:24]} 36. Kf1 {[%clk 0:00:20]}  a5 {[%clk 0:01:22]} 37. g4 {[%clk 0:00:20]}  h5 {[%clk 0:01:20]} 38. gxh5 {[%clk 0:00:20]}  Bxh3+ {[%clk 0:01:20]} 39. Kg1 {[%clk 0:00:21]}  gxh5 {[%clk 0:01:21]} 40. Kh2 {[%clk 0:00:21]}  Bg4 {[%clk 0:01:20]} 41. Kg3 {[%clk 0:00:22]}  Bd1 {[%clk 0:01:18]} 42. Bd8 {[%clk 0:00:22]}  a4 {[%clk 0:01:18]} 43. Be7 {[%clk 0:00:22]}  Ke2 {[%clk 0:01:18]} 44. Bf6 {[%clk 0:00:22]}  Kf1 {[%clk 0:01:14]} 45. Bh4 {[%clk 0:00:22]}  Bb3 {[%clk 0:01:10]} 46. Bg5 {[%clk 0:00:22]}  Ke2 {[%clk 0:01:10]} 47. Bh4 {[%clk 0:00:22]}  Kd3 {[%clk 0:01:09]} 48. Be7 {[%clk 0:00:22]}  Bd1 {[%clk 0:01:09]} 49. Bf6 {[%clk 0:00:22]}  Bf3 {[%clk 0:01:09]} 50. Be7 {[%clk 0:00:22]}  Kc4 {[%clk 0:01:09]} 51. Bc5 {[%clk 0:00:22]}  Kb5 {[%clk 0:01:09]} 52. Kh4 {[%clk 0:00:23]}  Kc6 {[%clk 0:01:08]} 53. Kg3 {[%clk 0:00:23]}  Kd7 {[%clk 0:01:08]} 54. Kh4 {[%clk 0:00:24]}  Ke6 {[%clk 0:01:08]} 55. Bb6 {[%clk 0:00:24]}  Kf5 {[%clk 0:01:08]} 56. Kg3 {[%clk 0:00:24]}  Kg5 {[%clk 0:01:08]} 57. Bd8+ {[%clk 0:00:24]}  Kf5 {[%clk 0:01:09]} 58. Ba5 {[%clk 0:00:25]}  Bd1 {[%clk 0:01:07]} 59. Bb4 {[%clk 0:00:25]}  Bb3 {[%clk 0:01:07]} 60. Be7 {[%clk 0:00:25]}  Bc4 {[%clk 0:01:07]} 61. Bb4 {[%clk 0:00:25]}  Kg6 {[%clk 0:01:06]} 62. Kh4 {[%clk 0:00:25]}  Kh6 {[%clk 0:01:06]} 63. Bd6 {[%clk 0:00:25]}  Be2 {[%clk 0:01:06]} 64. Bb4 {[%clk 0:00:25]}  Kg7 {[%clk 0:01:06]} 65. Bd6 {[%clk 0:00:25]}  Kf7 {[%clk 0:01:06]} 66. Bb4 {[%clk 0:00:25]}  Ke6 {[%clk 0:01:06]} 67. Kg3 {[%clk 0:00:26]}  Kd7 {[%clk 0:01:06]} 68. Kh4 {[%clk 0:00:26]}  Kc6 {[%clk 0:01:07]} 69. Kg3 {[%clk 0:00:27]}  Kb5 {[%clk 0:01:07]} 70. Kh4 {[%clk 0:00:28]}  Kc4 {[%clk 0:01:07]} 71. Kg3 {[%clk 0:00:28]}  Kd3 {[%clk 0:01:08]} 72. Kh4 {[%clk 0:00:29]}  Bf3 {[%clk 0:01:08]} 73. Kg3 {[%clk 0:00:29]}  Ke2 {[%clk 0:01:08]} 74. Be7 {[%clk 0:00:29]}  Kf1 {[%clk 0:01:08]} 75. Bh4 {[%clk 0:00:29]}  Kg1 {[%clk 0:01:08]} 76. Bg5 {[%clk 0:00:30]}  Kf1 {[%clk 0:01:07]} 77. Bh4 {[%clk 0:00:30]}  Ke2 {[%clk 0:01:08]} 78. Bg5 {[%clk 0:00:31]}  Bg4 {[%clk 0:01:08]} 79. Bh4 {[%clk 0:00:31]}  Kd3 {[%clk 0:01:07]} 80. Bg5 {[%clk 0:00:31]}  Bf3 {[%clk 0:01:07]} 81. Be7 {[%clk 0:00:32]}  Kc3 {[%clk 0:01:07]} 82. Bd6 {[%clk 0:00:32]}  Kb2 {[%clk 0:01:08]} 83. Bc5 {[%clk 0:00:32]} 1/2-1/2


[Site "https://www.chess.com"]

[Event "Titled Tuesday Blitz April 18 Early 2023"]
[White "Itkis, Boris"]
[Black "Ciorgovean, Iustin"]
[WhiteFideId "1209167"]
[BlackFideId "1242911"]
[WhiteElo "2216"]
[BlackElo "2186"]
[Result "0-1"]
[Round "05"]
[TimeControl "180+2"]
[Date "2023.04.18"]
[WhiteClock "0:00:01"]
[BlackClock "0:00:01"]

1. c4 {[%clk 0:03:00]}  c6 {[%clk 0:02:58]} 2. Nf3 {[%clk 0:03:00]}  d5 {[%clk 0:02:58]} 3. b3 {[%clk 0:03:01]}  Nf6 {[%clk 0:02:59]} 4. g3 {[%clk 0:03:01]}  dxc4 {[%clk 0:02:47]} 5. bxc4 {[%clk 0:03:00]}  e5 {[%clk 0:02:48]} 6. Bb2 {[%clk 0:02:53]}  e4 {[%clk 0:02:47]} 7. Nd4 {[%clk 0:02:52]}  Bc5 {[%clk 0:02:32]} 8. e3 {[%clk 0:02:48]}  O-O {[%clk 0:02:29]} 9. Bg2 {[%clk 0:02:44]}  Re8 {[%clk 0:02:25]} 10. O-O {[%clk 0:02:42]}  Nbd7 {[%clk 0:02:23]} 11. Qc2 {[%clk 0:02:23]}  Nf8 {[%clk 0:01:53]} 12. Nc3 {[%clk 0:02:18]}  Qe7 {[%clk 0:01:43]} 13. Rab1 {[%clk 0:01:55]}  h5 {[%clk 0:01:38]} 14. Ba1 {[%clk 0:01:45]}  h4 {[%clk 0:01:34]} 15. d3 {[%clk 0:01:23]}  exd3 {[%clk 0:01:29]} 16. Qxd3 {[%clk 0:01:24]}  N8h7 {[%clk 0:01:07]} 17. Nf5 {[%clk 0:00:52]}  Qe6 {[%clk 0:00:54]} 18. Nxh4 {[%clk 0:00:49]}  Ng5 {[%clk 0:00:48]} 19. Ne2 {[%clk 0:00:33]}  Nh3+ {[%clk 0:00:36]} 20. Bxh3 {[%clk 0:00:23]}  Qxh3 {[%clk 0:00:36]} 21. Bxf6 {[%clk 0:00:21]}  gxf6 {[%clk 0:00:36]} 22. Nf4 {[%clk 0:00:21]}  Qg4 {[%clk 0:00:34]} 23. h3 {[%clk 0:00:19]}  Qg5 {[%clk 0:00:34]} 24. Kh2 {[%clk 0:00:18]}  Bb6 {[%clk 0:00:26]} 25. Qc3 {[%clk 0:00:17]}  Bc7 {[%clk 0:00:25]} 26. Nf3 {[%clk 0:00:16]}  Qh6 {[%clk 0:00:21]} 27. Ng1 {[%clk 0:00:10]}  Kg7 {[%clk 0:00:19]} 28. Rbd1 {[%clk 0:00:09]}  Rh8 {[%clk 0:00:19]} 29. h4 {[%clk 0:00:10]}  Bg4 {[%clk 0:00:16]} 30. Rd2 {[%clk 0:00:07]}  Rag8 {[%clk 0:00:13]} 31. Rb2 {[%clk 0:00:06]}  b6 {[%clk 0:00:13]} 32. a4 {[%clk 0:00:07]}  Kf8 {[%clk 0:00:13]} 33. a5 {[%clk 0:00:07]}  Bc8 {[%clk 0:00:12]} 34. axb6 {[%clk 0:00:07]}  axb6 {[%clk 0:00:12]} 35. Qa3+ {[%clk 0:00:05]}  c5 {[%clk 0:00:11]} 36. Qa8 {[%clk 0:00:05]}  Kg7 {[%clk 0:00:12]} 37. Qe4 {[%clk 0:00:04]}  Kf8 {[%clk 0:00:09]} 38. Qf3 {[%clk 0:00:03]}  Bg4 {[%clk 0:00:07]} 39. Qc6 {[%clk 0:00:02]}  Be5 {[%clk 0:00:06]} 40. Qa8+ {[%clk 0:00:02]}  Kg7 {[%clk 0:00:06]} 41. Qa2 {[%clk 0:00:01]}  Bxb2 {[%clk 0:00:04]} 42. Qxb2 {[%clk 0:00:02]}  Be6 {[%clk 0:00:04]} 43. Qxb6 {[%clk 0:00:02]}  Kf8 {[%clk 0:00:02]} 44. Qxc5+ {[%clk 0:00:02]}  Kg7 {[%clk 0:00:02]} 45. Qe7 {[%clk 0:00:02]}  Re8 {[%clk 0:00:03]} 46. Nxe6+ {[%clk 0:00:02]}  Kg6 {[%clk 0:00:03]} 47. Nf4+ {[%clk 0:00:01]}  Qxf4 {[%clk 0:00:03]} 48. Qxe8 {[%clk 0:00:02]}  Rxh4+ {[%clk 0:00:03]} 49. Kg2 {[%clk 0:00:01]}  Qg5 {[%clk 0:00:01]} 50. Qe4+ {[%clk 0:00:01]}  Rxe4 {[%clk 0:00:01]} 51. Rd1 {[%clk 0:00:01]}  Rxc4 {[%clk 0:00:01]} 0-1


[Site "https://www.chess.com"]

[Event "Titled Tuesday Blitz April 18 Early 2023"]
[White "mrithyunjay"]
[Black "Ramirez Vido, Robert Yorisan"]
[BlackFideId "3513823"]
[WhiteElo "2223"]
[BlackElo "2451"]
[Result "1-0"]
[Round "05"]
[TimeControl "180+2"]
[Date "2023.04.18"]
[WhiteClock "0:00:53"]
[BlackClock "0:00:11"]

1. e4 {[%clk 0:02:56]}  d6 {[%clk 0:02:58]} 2. d4 {[%clk 0:02:54]}  Nf6 {[%clk 0:02:58]} 3. Nc3 {[%clk 0:02:40]}  g6 {[%clk 0:02:57]} 4. Be3 {[%clk 0:02:38]}  c6 {[%clk 0:02:57]} 5. f3 {[%clk 0:02:30]}  b5 {[%clk 0:02:57]} 6. Qd2 {[%clk 0:02:30]}  Nbd7 {[%clk 0:02:56]} 7. g4 {[%clk 0:02:27]}  Nb6 {[%clk 0:02:53]} 8. a3 {[%clk 0:02:22]}  Qc7 {[%clk 0:02:50]} 9. h4 {[%clk 0:02:16]}  h5 {[%clk 0:02:49]} 10. g5 {[%clk 0:02:15]}  Nfd7 {[%clk 0:02:49]} 11. d5 {[%clk 0:02:08]}  a6 {[%clk 0:02:45]} 12. O-O-O {[%clk 0:02:03]}  Bg7 {[%clk 0:02:43]} 13. Bd4 {[%clk 0:02:02]}  O-O {[%clk 0:02:33]} 14. Bxg7 {[%clk 0:02:01]}  Kxg7 {[%clk 0:02:34]} 15. f4 {[%clk 0:01:57]}  c5 {[%clk 0:02:29]} 16. f5 {[%clk 0:01:53]}  Ne5 {[%clk 0:02:18]} 17. Be2 {[%clk 0:01:43]}  b4 {[%clk 0:02:14]} 18. Nb1 {[%clk 0:01:42]}  a5 {[%clk 0:01:26]} 19. Nf3 {[%clk 0:01:40]}  Nec4 {[%clk 0:01:16]} 20. Qf4 {[%clk 0:01:36]}  bxa3 {[%clk 0:01:04]} 21. Nxa3 {[%clk 0:01:32]}  Nxa3 {[%clk 0:00:54]} 22. bxa3 {[%clk 0:01:32]}  Na4 {[%clk 0:00:44]} 23. e5 {[%clk 0:01:27]}  Nc3 {[%clk 0:00:23]} 24. f6+ {[%clk 0:01:18]}  exf6 {[%clk 0:00:19]} 25. gxf6+ {[%clk 0:01:17]}  Kh7 {[%clk 0:00:16]} 26. Ng5+ {[%clk 0:01:11]}  Kg8 {[%clk 0:00:17]} 27. Bxh5 {[%clk 0:01:09]}  gxh5 {[%clk 0:00:14]} 28. Qf3 {[%clk 0:00:55]}  Na2+ {[%clk 0:00:10]} 29. Kd2 {[%clk 0:00:53]}  Bg4 {[%clk 0:00:11]} 30. Qd3 {[%clk 0:00:53]} 1-0


[Site "https://www.chess.com"]

[Event "Titled Tuesday Blitz April 18 Early 2023"]
[White "dDobravcan"]
[Black "Manukian, Artak"]
[BlackFideId "13301373"]
[WhiteElo "2174"]
[BlackElo "2130"]
[Result "0-1"]
[Round "05"]
[TimeControl "180+2"]
[Date "2023.04.18"]
[WhiteClock "0:00:01"]
[BlackClock "0:01:11"]

1. e4 {[%clk 0:03:00]}  c6 {[%clk 0:03:00]} 2. d4 {[%clk 0:03:00]}  d5 {[%clk 0:03:00]} 3. f3 {[%clk 0:02:59]}  e6 {[%clk 0:03:00]} 4. Nc3 {[%clk 0:02:52]}  Nf6 {[%clk 0:02:59]} 5. a3 {[%clk 0:02:50]}  Be7 {[%clk 0:02:55]} 6. Be3 {[%clk 0:02:37]}  b5 {[%clk 0:02:55]} 7. e5 {[%clk 0:02:22]}  Nfd7 {[%clk 0:02:54]} 8. Bd3 {[%clk 0:02:07]}  a5 {[%clk 0:02:53]} 9. Nge2 {[%clk 0:02:03]}  Ba6 {[%clk 0:02:52]} 10. O-O {[%clk 0:02:01]}  b4 {[%clk 0:02:45]} 11. axb4 {[%clk 0:01:57]}  axb4 {[%clk 0:02:46]} 12. Na4 {[%clk 0:01:54]}  Bxd3 {[%clk 0:02:44]} 13. Qxd3 {[%clk 0:01:54]}  O-O {[%clk 0:02:43]} 14. f4 {[%clk 0:01:45]}  g6 {[%clk 0:02:43]} 15. g4 {[%clk 0:01:42]}  f5 {[%clk 0:02:39]} 16. gxf5 {[%clk 0:01:20]}  gxf5 {[%clk 0:02:35]} 17. Kh1 {[%clk 0:01:16]}  Kh8 {[%clk 0:02:36]} 18. Rg1 {[%clk 0:00:48]}  Nb6 {[%clk 0:02:06]} 19. Nc5 {[%clk 0:00:26]}  Rxa1 {[%clk 0:02:04]} 20. Rxa1 {[%clk 0:00:19]}  Bxc5 {[%clk 0:02:03]} 21. dxc5 {[%clk 0:00:18]}  Nc4 {[%clk 0:02:04]} 22. Nd4 {[%clk 0:00:17]}  Qe7 {[%clk 0:01:56]} 23. Bc1 {[%clk 0:00:15]}  Rg8 {[%clk 0:01:49]} 24. Ra8 {[%clk 0:00:10]}  Nd7 {[%clk 0:01:43]} 25. Rxg8+ {[%clk 0:00:07]}  Kxg8 {[%clk 0:01:44]} 26. Nxf5 {[%clk 0:00:07]}  exf5 {[%clk 0:01:40]} 27. Qxf5 {[%clk 0:00:07]}  Nxc5 {[%clk 0:01:32]} 28. b3 {[%clk 0:00:05]}  Na3 {[%clk 0:01:24]} 29. Be3 {[%clk 0:00:01]}  Ne6 {[%clk 0:01:11]} 0-1


[Site "https://www.chess.com"]